fUSD/lending_fUSD_20250322
["ID","MTS","AMOUNT","RATE_DAILY","PERIOD"]
[356529938,1742622645644,-500.0,0.00046849,120]
[356529939,1742622645654,-500.0,0.00046849,120]
[356529940,1742622645663,-500.0,0.00046849,120]
[356529941,1742622645672,-500.0,0.00046849,120]
[356529942,1742622645681,-500.0,0.00046849,120]
[356529943,1742622645690,-500.0,0.00046849,120]
[356529944,1742622645700,-580.31,0.00046849,120]
[356529945,1742622645709,-500.0,0.00046849,120]
[356529946,1742622645718,-500.0,0.00046849,120]
[356529947,1742622645728,-500.0,0.00046849,120]
[356529948,1742622645737,-500.0,0.00046849,120]
[356529949,1742622645747,-500.0,0.00046849,120]
[356529950,1742622645756,-500.0,0.00046849,120]
[356529951,1742622645765,-520.13619818,0.00046849,120]
[356529952,1742622645776,-500.0,0.00046849,120]
[356529953,1742622645786,-500.0,0.00046849,120]
[356529954,1742622645795,-1409.63,0.00046849,120]
[356529956,1742622645805,-1229.63,0.00046849,120]
[356529957,1742622645814,-520.7630162,0.00046849,120]
[356529958,1742622645824,-500.0,0.00046849,120]
[356529959,1742622645833,-500.0,0.00046849,120]
[356529960,1742622645842,-500.0,0.00046849,120]
[356529961,1742622645852,-510.14488613,0.00046849,120]
[356529962,1742622645861,-629.27,0.00046849,120]
[356529963,1742622645870,-500.0,0.00046849,120]
[356529964,1742622645879,-964.59,0.00046849,120]
[356529965,1742622645888,-500.0,0.00046849,120]
[356529966,1742622645897,-887.75,0.00046849,120]
[356529967,1742622645906,-500.0,0.00046849,120]
[356529968,1742622645916,-1268.47,0.00046849,120]
[356529969,1742622645924,-500.0,0.00046849,120]
[356529970,1742622645934,-500.0,0.00046849,120]
[356529971,1742622645944,-500.0,0.00046849,120]
[356529972,1742622645954,-500.0,0.00046849,120]
[356529973,1742622645963,-500.0,0.00046849,120]
[356529974,1742622645973,-500.0,0.00046849,120]
[356529975,1742622645982,-500.0,0.00046849,120]
[356529976,1742622645991,-500.0,0.00046849,120]
[356529977,1742622646001,-500.0,0.00046849,120]
[356529978,1742622646010,-601.98,0.00046849,120]
[356529979,1742622646019,-500.0,0.00046849,120]
[356529980,1742622646028,-500.0,0.00046849,120]
[356529981,1742622646037,-500.0,0.00046849,120]
[356529982,1742622646047,-500.0,0.00046849,120]
[356529983,1742622646055,-500.0,0.00046849,120]
[356529984,1742622646064,-259.14588041,0.00046849,120]
[356529985,1742622646074,-682.27,0.00046849,120]
[356529986,1742622646083,-1100.64,0.00046849,120]
[356529987,1742622646093,-500.0,0.00046849,120]
[356529988,1742622646103,-524.82123538,0.00046849,120]
[356529989,1742622646112,-500.0,0.00046849,120]
[356529990,1742622646122,-193.38531113,0.00046849,120]
[356529991,1742622646130,-500.0,0.00046849,30]
[356529992,1742622646140,-788.1,0.00046849,120]
[356529993,1742622646149,-500.0,0.00046849,120]
[356529994,1742622646158,-500.0,0.00046849,120]
[356529995,1742622646170,-500.0,0.00046849,120]
[356529996,1742622646178,-500.0,0.00046849,120]
[356529997,1742622646188,-526.23781333,0.00046849,120]
[356529998,1742622646198,-500.0,0.00046849,120]
[356529999,1742622646209,-500.0,0.00046849,120]
[356530000,1742622646218,-1094.84,0.00046849,120]
[356530001,1742622646227,-500.0,0.00046849,2]
[356530002,1742622646236,-500.0,0.00046849,120]
[356530003,1742622646245,-500.0,0.00046849,120]
[356530004,1742622646254,-512.65910976,0.00046849,120]
[356530005,1742622646263,-500.0,0.00046849,120]
[356530006,1742622646272,-449.55004269,0.00046849,120]
[356530007,1742622646281,-500.0,0.00046849,120]
[356530008,1742622646290,-500.0,0.00046849,120]
[356530009,1742622646299,-1106.19206943,0.00046849,120]
[356530017,1742622646619,-335.25037846,0.00045152,120]
[356530018,1742622646628,-339.09793057,0.00046849,120]
[356530019,1742622646637,-100.55132835,0.00046849,60]
[356530020,1742622646648,-399.44867165,0.00046849,60]
[356530021,1742622646657,-803.08,0.00046849,120]
[356530022,1742622646667,-500.0,0.00046849,120]
[356530023,1742622646676,-500.0,0.00046849,120]
[356530024,1742622646686,-500.0,0.00046849,120]
[356530025,1742622646695,-500.0,0.00046849,120]
[356530026,1742622646704,-500.0,0.00046849,120]
[356530027,1742622646713,-3000.0,0.00046849,120]
[356530028,1742622646723,-733.91,0.00046849,120]
[356530029,1742622646732,-500.0,0.00046849,120]
[356530030,1742622646741,-906.15,0.00046849,120]
[356530031,1742622646750,-684.63,0.00046849,120]
[356530032,1742622646759,-500.0,0.00046849,120]
[356530033,1742622646768,-994.64,0.00046849,120]
[356530034,1742622646781,-500.0,0.00046849,120]
[356530035,1742622646791,-981.31,0.00046849,120]
[356530036,1742622646801,-542.83807044,0.00046849,120]
[356530037,1742622646810,-500.0,0.00046849,120]
[356530038,1742622646820,-881.63,0.00046849,2]
[356530039,1742622646832,-454.61172095,0.00046849,120]
[356530040,1742622646840,-500.0,0.00046849,120]
[356530041,1742622646850,-500.0,0.00046849,120]
[356530042,1742622646861,-500.0,0.00046849,120]
[356530043,1742622646870,-1021.48,0.00046849,120]
[356530044,1742622646881,-1042.35,0.00046849,120]
[356530045,1742622646892,-500.0,0.00046849,120]
[356530046,1742622646902,-576.79,0.00046849,120]
[356530047,1742622646911,-500.0,0.00046849,120]
[356530048,1742622646922,-500.0,0.00046849,120]
[356530049,1742622646931,-564.95447799,0.00046849,120]
[356530050,1742622646940,-674.43,0.00046849,120]
[356530051,1742622646950,-500.0,0.00046849,120]
[356530052,1742622646959,-500.0,0.00046849,120]
[356530053,1742622646968,-500.0,0.00046849,120]
[356530054,1742622646977,-1140.77,0.00046849,120]
[356530055,1742622646987,-500.0,0.00046849,120]
[356530056,1742622646996,-500.0,0.00046849,120]
[356530057,1742622647005,-500.0,0.00046849,120]
[356530058,1742622647014,-500.0,0.00046849,120]
[356530059,1742622647023,-500.0,0.00046849,120]
[356530060,1742622647033,-500.0,0.00046849,120]
[356530061,1742622647043,-899.76,0.00046849,120]
[356530062,1742622647053,-500.0,0.00046849,120]
[356530063,1742622647062,-500.0,0.00046849,120]
[356530064,1742622647071,-500.0,0.00046849,120]
[356530065,1742622647080,-500.0,0.00046849,120]
[356530066,1742622647090,-500.0,0.00046849,120]
[356530067,1742622647099,-527.26979187,0.00046849,120]
[356530068,1742622647108,-500.0,0.00046849,120]
[356530069,1742622647117,-500.0,0.00046849,120]
[356530070,1742622647126,-500.0,0.00046849,120]
[356530071,1742622647136,-781.01,0.00046849,120]
[356530072,1742622647145,-500.0,0.00046849,120]
[356530073,1742622647155,-500.0,0.00046849,120]
[356530074,1742622647163,-500.0,0.00046849,120]
[356530075,1742622647173,-500.0,0.00046849,120]
[356530076,1742622647182,-500.0,0.00046849,120]
[356530077,1742622647191,-536.86,0.00046849,120]
[356530078,1742622647200,-500.0,0.00046849,120]
[356530079,1742622647209,-500.0,0.00046849,120]
[356530080,1742622647218,-500.0,0.00046849,120]
[356530081,1742622647228,-293.51752209,0.00046849,30]
[356530082,1742622648408,-206.48247791,0.00046849,30]
[356530083,1742622648418,-500.0,0.00046849,120]
[356530084,1742622648427,-320.36676688,0.00046849,120]
[356530085,1742622648843,-179.63323312,0.00046849,120]
[356530086,1742622648852,-353.96172688,0.00046849,120]
[356530087,1742622648865,-146.03827312,0.00046849,120]
[356530088,1742622648875,-536.01,0.00046849,120]
[356530089,1742622648884,-243.5452219,0.00046849,120]
[356530090,1742622648894,-500.0,0.00046849,120]
[356530091,1742622648904,-500.0,0.00046849,120]
[356530092,1742622648913,-500.0,0.00046849,120]
[356530093,1742622648922,-739.81,0.00046849,120]
[356530094,1742622648932,-619.55,0.00046849,120]
[356530095,1742622648941,-279.87650498,0.00046849,120]
[356530096,1742622648957,-220.12349502,0.00046849,120]
[356530097,1742622648967,-944.81,0.00046849,120]
[356530098,1742622648976,-500.0,0.00046849,120]
[356530099,1742622648985,-748.83604898,0.00046849,120]
[356530100,1742622649027,-35.72395102,0.00046849,120]
[356530101,1742622649037,-500.0,0.00046849,120]
[356530102,1742622649046,-247.72684685,0.00046849,30]
[356530116,1742623832158,-255.92,0.00026849,2]
[356530117,1742623832167,-150.0,0.0003137,30]
[356530118,1742623832177,-307.89,0.0004318,2]
[356530119,1742623832186,-500.0,0.00044,30]
[356530120,1742623832195,-1000.0,0.00044999,120]
[356530121,1742623832205,-1000.0,0.00045004,2]
[356530122,1742623832215,-150.0,0.00045049,2]
[356530123,1742623832224,-228.59,0.00045061,2]
[356530124,1742623832234,-152.31,0.00045103,2]
[356530125,1742623832244,-741.7,0.00045138,2]
[356530126,1742623832253,-150.0,0.00045139,2]
[356530127,1742623832319,-284.18,0.00045259,2]
[356530128,1742623832329,-500.0,0.00045285,2]
[356530129,1742623832341,-200.0,0.00045285,2]
[356530130,1742623832350,-195.67,0.00045342,2]
[356530131,1742623832359,-284.18,0.00045355,2]
[356530132,1742623832368,-15443.30791018,0.0004537,2]
[356530133,1742623832379,-962.08229431,0.0004537,2]
[356530134,1742623832392,-5808.66052096,0.0004537,2]
[356530135,1742623832403,-1685.94927455,0.0004537,2]
[356530136,1742623832414,-307.89,0.00045444,2]
[356530137,1742623832423,-284.18,0.0004545,2]
[356530138,1742623832432,-1500.0,0.0004545,2]
[356530139,1742623832442,-820.03,0.00045466,120]
[356530140,1742623832451,-250.0,0.00045493,2]
[356530141,1742623832460,-896.38,0.00045509,2]
[356530142,1742623832470,-284.18,0.00045545,2]
[356530143,1742623832479,-8.10846059,0.00045548,2]
[356530144,1742623832491,-4104.92153941,0.00045548,2]
[356530145,1742623832499,-284.18,0.00045641,2]
[356530146,1742623832509,-284.18,0.00045736,2]
[356530147,1742623832519,-150.0,0.00045736,4]
[356530148,1742623832528,-284.18,0.00045831,2]
[356530149,1742623832537,-207.03082725,0.000459,10]
[356530150,1742623832546,-1327.79576034,0.00045912,10]
[356530151,1742623832556,-284.18,0.00045926,2]
[356530152,1742623832565,-302.22,0.00046,14]
[356530153,1742623832574,-183.6,0.00046021,2]
[356530154,1742623832583,-93.998873,0.00046022,2]
[356530155,1742623832594,-190.181127,0.00046022,2]
[356530156,1742623832603,-1281.0,0.00046037,2]
[356530157,1742623832613,-412.256,0.00046037,2]
[356530158,1742623832622,-514.912,0.00046037,2]
[356530159,1742623832631,-673.355873,0.00046037,2]
[356530160,1742623832642,-718.78087629,0.00046037,2]
[356530162,1742623832661,-37.86325071,0.00046037,2]
[356530163,1742623832670,-380.11602857,0.00046037,2]
[356530164,1742623832681,-1133.11323801,0.00046037,2]
[356530165,1742623832693,-2570.77073342,0.00046037,2]
[356530166,1742623832702,-542.0,0.00046037,2]
[356530167,1742623832712,-610.58425575,0.00046037,2]
[356530168,1742623832727,-297.41574425,0.00046037,2]
[356530169,1742623832737,-1956.30223889,0.00046037,2]
[356530170,1742623832748,-1982.69776111,0.00046037,2]
[356530171,1742623832758,-151.0,0.00046037,2]
[356530172,1742623832767,-284.18,0.00046117,2]
[356530173,1742623832777,-284.18,0.00046212,2]
[356530174,1742623832786,-284.18,0.00046308,2]
[356530175,1742623832795,-152.31,0.00046375,2]
[356530176,1742623832804,-314.3029,0.00046375,2]
[356530177,1742623832814,-162.8025,0.00046375,2]
[356530178,1742623832823,-205.29613295,0.000464,120]
[356530179,1742623832833,-284.18,0.00046403,2]
[356530180,1742623832842,-780.77,0.00046438,30]
[356530181,1742623832852,-780.77,0.00046438,30]
[356530182,1742623832861,-174.98,0.00046438,30]
[356530183,1742623832871,-161.48,0.00046444,5]
[356530184,1742623832880,-3054.92115271,0.00046465,2]
[356530185,1742623832889,-6052.07512047,0.00046465,2]
[356530186,1742623832901,-322.26793109,0.00046465,2]
[356530187,1742623832920,-2820.06914844,0.00046465,2]
[356530188,1742623832929,-223.4757,0.00046465,2]
[356530189,1742623832939,-284.96282171,0.00046468,120]
[356530190,1742623832948,-156.5120618,0.00046468,15]
[356530191,1742623832957,-1000.0,0.0004647,120]
[356530192,1742623832966,-500.0,0.00046471,120]
[356530193,1742623832975,-203.401479,0.00046471,120]
[356530194,1742623832987,-296.598521,0.00046471,120]
[356530195,1742623832996,-488.05801578,0.00046471,120]
[356530196,1742623833007,-11.94198422,0.00046471,120]
[356530197,1742623833016,-500.0,0.00046471,120]
[356530198,1742623833025,-500.0,0.00046471,120]
[356530199,1742623833035,-500.0,0.00046471,120]
[356530200,1742623833045,-464.17759377,0.00046471,120]
[356530201,1742623833057,-35.82240623,0.00046471,120]
[356530202,1742623833066,-500.0,0.00046471,120]
[356530203,1742623833074,-441.31471662,0.00046471,120]
[356530204,1742623833085,-58.68528338,0.00046471,120]
[356530205,1742623833094,-500.0,0.00046471,120]
[356530206,1742623833103,-134.30103172,0.00046471,120]
[356530207,1742623833115,-365.69896828,0.00046471,120]
[356530208,1742623833124,-500.0,0.00046471,120]
[356530209,1742623833134,-500.0,0.00046471,120]
[356530210,1742623833144,-433.60706532,0.00046471,120]
[356530211,1742623833153,-500.0,0.00046471,120]
[356530212,1742623833163,-500.0,0.00046471,120]
[356530213,1742623833172,-500.0,0.00046471,120]
[356530214,1742623833182,-500.0,0.00046471,120]
[356530215,1742623833191,-420.5291322,0.00046471,120]
[356530216,1742623833203,-79.4708678,0.00046471,120]
[356530217,1742623833212,-451.5827292,0.00046471,120]
[356530218,1742623833236,-48.4172708,0.00046471,120]
[356530219,1742623833245,-247.65171903,0.00046474,2]
[356530220,1742623833257,-752.34828097,0.00046474,2]
[356530221,1742623833266,-498.0801,0.00046474,2]
[356530222,1742623833276,-135.67737797,0.00046475,2]
[356530223,1742623833287,-1434.24613958,0.00046475,2]
[356530224,1742623833298,-975.09804948,0.00046475,2]
[356530225,1742623833309,-7494.41903297,0.00046475,2]
[356530226,1742623833319,-1000.0,0.00046475,2]
[356530227,1742623833329,-437.2766,0.00046475,2]
[356530228,1742623833343,-284.18,0.00046498,2]
[356530229,1742623833352,-284.96282169,0.00046526,120]
[356530230,1742623833361,-150.0,0.00046548,30]
[356530231,1742623833371,-150.0,0.00046548,30]
[356530232,1742623833380,-150.0,0.00046548,30]
[356530233,1742623833389,-158.7649273,0.00046548,30]
[356530234,1742623833399,-402.22,0.00046548,31]
[356530235,1742623833408,-804.38,0.00046549,31]
[356530236,1742623833417,-177.22476358,0.00046564,120]
[356530237,1742623833428,-165.47135976,0.00046564,120]
[356530238,1742623833438,-6776.35821744,0.00046565,3]
[356530241,1742623838049,-1115.0,0.00046037,2]
[356530242,1742623838059,-4143.09303805,0.00046565,3]
[356530243,1742623838109,-8519.11979,0.00046565,3]
[356530244,1742623838121,-2454.63464849,0.00046565,3]
[356530245,1742623838302,-392.05603735,0.00046565,3]
[356530246,1742623838314,-3386.44945899,0.00046565,3]
[356530273,1742623840347,-14116.49926266,0.00046565,3]
[356530274,1742623840462,-766.4,0.00046565,3]
[356530275,1742623840578,-501.4379346,0.00046565,3]
[356530281,1742623843329,-40682.42731563,0.00046565,3]
[356530283,1742623844438,-754.32475265,0.00046565,3]
[356530284,1742623844450,-293.75433028,0.00046565,3]
[356530286,1742623846490,-2411.33716029,0.00046565,3]
[356530287,1742623846502,-286.21839978,0.00046565,3]
[356530288,1742623846514,-515.82099314,0.00046565,3]
[356530289,1742624103239,528.0,0.0002,7]
[356530290,1742624103267,9132.0,0.0002,7]
[356530304,1742624809177,442.19380073,0.00025,90]
[356530305,1742624870257,1172.30392938,0.0002,4]
[356530306,1742624872278,33447.39146837,0.0001,2]
[356530307,1742624872308,50000.0,0.0001,2]
[356530308,1742624872339,50000.0,0.0001,2]
[356530309,1742624872369,50000.0,0.0001,2]
[356530310,1742624872399,50000.0,0.0001,2]
[356530311,1742624872430,50000.0,0.0001,2]
[356530312,1742624872460,50000.0,0.0001,2]
[356530313,1742624872490,50000.0,0.0001,2]
[356530314,1742624872520,50000.0,0.0001,2]
[356530315,1742624872550,50000.0,0.0001,2]
[356530316,1742624872579,50000.0,0.0001,2]
[356530317,1742624872612,970426.68220771,0.0001,2]
[356530349,1742625032479,-157.94,0.00026849,2]
[356530350,1742625032490,-150.0,0.000275,2]
[356530351,1742625032501,-150.0,0.00027859,2]
[356530352,1742625032511,-150.0,0.00029534,2]
[356530353,1742625032522,-221.3658,0.00030888,7]
[356530354,1742625032532,-250.0,0.00031,2]
[356530355,1742625032542,-705.82955705,0.0003121,2]
[356530356,1742625032552,-1992.2927,0.00038888,30]
[356530357,1742625032563,-207.03082725,0.000399,8]
[356530358,1742625032572,-222.0,0.0004,60]
[356530359,1742625032583,-157.94,0.00042583,2]
[356530360,1742625032592,-302.34,0.00043266,2]
[356530361,1742625032603,-14954.56804601,0.00044,14]
[356530362,1742625032613,-250.0,0.00044572,2]
[356530363,1742625032623,-342.21,0.00044855,2]
[356530364,1742625032634,-170.51,0.00044909,2]
[356530365,1742625032644,-464.38383699,0.00044939,2]
[356530366,1742625032655,-152.31,0.00044954,2]
[356530367,1742625032665,-1500.0,0.00045,30]
[356530368,1742625032675,-614.0,0.00045,30]
[356530369,1742625032685,-300.0,0.00045,120]
[356530370,1742625032695,-233.48,0.00045022,2]
[356530371,1742625032704,-233.48,0.00045117,2]
[356530372,1742625032714,-350.0,0.0004515,2]
[356530373,1742625032724,-233.48,0.00045212,2]
[356530374,1742625032734,-1500.0,0.000453,120]
[356530375,1742625032744,-1521.02,0.000453,120]
[356530376,1742625032755,-150.0,0.000453,4]
[356530377,1742625032764,-233.48,0.00045306,2]
[356530378,1742625032775,-868.56,0.00045386,2]
[356530379,1742625032784,-233.48,0.00045401,2]
[356530380,1742625032794,-673.08,0.00045412,2]
[356530381,1742625032806,-23900.0,0.00045436,2]
[356530382,1742625032817,-929.40002185,0.00045445,6]
[356530383,1742625032827,-17098.3,0.00045446,2]
[356530384,1742625032837,-233.48,0.00045496,2]
[356530385,1742625032847,-187.44,0.00045529,2]
[356530386,1742625032857,-302.34,0.0004553,2]
[356530387,1742625032867,-233.48,0.00045591,2]
[356530388,1742625032876,-1500.0,0.000456,120]
[356530389,1742625032886,-500.0,0.0004563,120]
[356530390,1742625032900,-500.0,0.0004563,120]
[356530391,1742625032911,-500.0,0.0004563,120]
[356530392,1742625032920,-595.59526639,0.0004563,120]
[356530393,1742625032930,-7336.71,0.00045631,2]
[356530394,1742625032941,-233.48,0.00045686,2]
[356530395,1742625032950,-233.48,0.0004578,2]
[356530396,1742625032960,-1300.0,0.000458,7]
[356530397,1742625032971,-233.48,0.00045875,2]
[356530398,1742625032981,-233.48,0.0004597,2]
[356530399,1742625032991,-1393.6,0.00046,120]
[356530400,1742625033001,-908.0,0.00046045,2]
[356530401,1742625033011,-151.0,0.00046045,2]
[356530402,1742625033021,-262.679,0.00046045,2]
[356530403,1742625033031,-301.89,0.00046052,30]
[356530404,1742625033040,-233.48,0.00046065,2]
[356530405,1742625033050,-2110.0,0.00046123,30]
[356530406,1742625033060,-233.48,0.0004616,2]
[356530407,1742625033070,-639.93848182,0.00046208,30]
[356530408,1742625033080,-233.48,0.00046254,2]
[356530409,1742625033090,-930.977765,0.00046275,30]
[356530410,1742625033100,-639.93848182,0.00046326,30]
[356530411,1742625033110,-233.48,0.00046349,2]
[356530412,1742625033120,-156.51206173,0.00046375,15]
[356530413,1742625033130,-2866.89,0.0004638,90]
[356530414,1742625033140,-152.31,0.0004638,2]
[356530415,1742625033150,-639.93848182,0.00046408,30]
[356530416,1742625033161,-233.48,0.00046444,2]
[356530417,1742625033171,-639.93848182,0.00046458,30]
[356530418,1742625033181,-1000.0,0.00046465,2]
[356530419,1742625033191,-283.504,0.00046465,2]
[356530420,1742625033200,-1383.4751,0.00046472,2]
[356530421,1742625033210,-150.37421475,0.00046475,15]
[356530422,1742625033220,-567.14566524,0.00046475,18]
[356530423,1742625033230,-349.98369066,0.00046475,2]
[356530424,1742625033240,-52909.4652,0.00046475,2]
[356530425,1742625033249,-1889.3086,0.00046475,2]
[356530426,1742625033259,-35614.2621,0.00046475,2]
[356530427,1742625033269,-2500.0,0.00046475,2]
[356530428,1742625033279,-568.9989,0.00046475,120]
[356530429,1742625033290,-32061.86200715,0.000465,3]
[356530430,1742625033300,-233.48,0.00046539,2]
[356530431,1742625033310,-150.0,0.00046548,30]
[356530432,1742625033320,-150.0,0.00046548,30]
[356530433,1742625033330,-150.0,0.00046548,30]
[356530434,1742625033340,-2792.82,0.0004655,31]
[356530435,1742625033350,-1000.0,0.00046564,120]
[356530436,1742625033360,-67385.242816,0.00046565,3]
[356530437,1742625033370,-500.0,0.00046573,2]
[356530438,1742625033380,-219.73762386,0.00046574,60]
[356530439,1742625033390,-1000.0,0.00046574,120]
[356530440,1742625033400,-1000.0,0.00046574,120]
[356530441,1742625033410,-294.0025,0.00046574,120]
[356530442,1742625033421,-1337.225681,0.00046575,120]
[356530443,1742625033431,-1084.460486,0.00046575,120]
[356530444,1742625033441,-159.505277,0.00046575,120]
[356530445,1742625033451,-158.830351,0.00046575,120]
[356530446,1742625033461,-500.0,0.00046575,120]
[356530447,1742625033471,-500.0,0.00046575,120]
[356530448,1742625033481,-500.0,0.00046575,120]
[356530449,1742625033491,-500.0,0.00046575,120]
[356530450,1742625033501,-500.0,0.00046575,120]
[356530451,1742625033512,-528.45221312,0.00046575,120]
[356530452,1742625033522,-500.0,0.00046575,120]
[356530453,1742625033532,-500.0,0.00046575,120]
[356530454,1742625033544,-500.0,0.00046575,120]
[356530455,1742625033558,-500.0,0.00046575,120]
[356530456,1742625033569,-287.05459033,0.00046575,120]
[356530457,1742625033580,-514.89,0.00046575,120]
[356530458,1742625033590,-3002.86,0.00046575,120]
[356530459,1742625033600,-500.0,0.00046575,120]
[356530460,1742625033611,-500.0,0.00046575,120]
[356530461,1742625033621,-1330.26,0.00046575,120]
[356530462,1742625033632,-500.0,0.00046575,120]
[356530463,1742625033642,-539.21,0.00046575,120]
[356530464,1742625033653,-500.0,0.00046575,120]
[356530465,1742625033663,-500.0,0.00046575,120]
[356530466,1742625033674,-500.0,0.00046575,120]
[356530467,1742625033684,-617.3017882,0.00046575,120]
[356530468,1742625033694,-1207.69,0.00046575,120]
[356530469,1742625033704,-772.16,0.00046575,120]
[356530470,1742625033714,-500.0,0.00046575,120]
[356530471,1742625033724,-500.0,0.00046575,120]
[356530472,1742625033734,-553.43,0.00046575,120]
[356530473,1742625033744,-500.0,0.00046575,120]
[356530474,1742625033754,-500.0,0.00046575,120]
[356530475,1742625033764,-500.0,0.00046575,120]
[356530476,1742625033774,-500.0,0.00046575,120]
[356530477,1742625033784,-500.0,0.00046575,120]
[356530478,1742625033795,-593.86,0.00046575,120]
[356530479,1742625033806,-810.89,0.00046575,120]
[356530480,1742625033816,-1146.0,0.00046575,120]
[356530481,1742625033826,-825.84,0.00046575,120]
[356530482,1742625033836,-500.0,0.00046575,120]
[356530483,1742625033847,-500.0,0.00046575,120]
[356530484,1742625033857,-330.6,0.00046575,120]
[356530485,1742625033867,-500.0,0.00046575,120]
[356530486,1742625033877,-500.0,0.00046575,120]
[356530487,1742625033888,-500.0,0.00046575,120]
[356530488,1742625033899,-401.32996245,0.00046575,120]
[356530489,1742625033910,-500.0,0.00046575,120]
[356530490,1742625033929,-502.84,0.00046575,120]
[356530491,1742625033942,-500.0,0.00046575,120]
[356530492,1742625033954,-500.0,0.00046575,120]
[356530493,1742625033966,-500.0,0.00046575,120]
[356530494,1742625033977,-500.0,0.00046575,120]
[356530495,1742625033991,-500.0,0.00046575,120]
[356530496,1742625034003,-500.0,0.00046575,120]
[356530497,1742625034015,-500.0,0.00046575,120]
[356530498,1742625034027,-500.0,0.00046575,120]
[356530499,1742625034039,-584.23,0.00046575,120]
[356530500,1742625034050,-538.52,0.00046575,120]
[356530501,1742625034062,-520.89,0.00046575,120]
[356530502,1742625034075,-500.0,0.00046575,120]
[356530503,1742625034087,-629.72,0.00046575,120]
[356530504,1742625034381,-500.0,0.00046575,120]
[356530505,1742625034406,-592.1,0.00046575,120]
[356530506,1742625034416,-891.36,0.00046575,120]
[356530507,1742625034426,-500.0,0.00046575,120]
[356530508,1742625034436,-573.94,0.00046575,120]
[356530509,1742625034446,-1648.91,0.00046575,10]
[356530510,1742625034456,-523.44,0.00046575,120]
[356530511,1742625034466,-617.02739074,0.00046575,120]
[356530512,1742625034476,-1417.04,0.00046575,120]
[356530513,1742625034486,-1380.27,0.00046575,120]
[356530514,1742625034497,-500.0,0.00046575,120]
[356530515,1742625034507,-500.0,0.00046575,120]
[356530516,1742625034517,-500.0,0.00046575,120]
[356530517,1742625034527,-622.19,0.00046575,120]
[356530518,1742625034536,-500.0,0.00046575,120]
[356530519,1742625034546,-500.0,0.00046575,120]
[356530520,1742625034556,-462.00925985,0.00046575,120]
[356530521,1742625034566,-500.0,0.00046575,120]
[356530522,1742625034575,-279.45,0.00046575,7]
[356530523,1742625034585,-500.0,0.00046575,120]
[356530524,1742625034595,-500.0,0.00046575,120]
[356530525,1742625034604,-500.0,0.00046575,120]
[356530526,1742625034614,-500.0,0.00046575,120]
[356530527,1742625034623,-529.17359708,0.00046575,120]
[356530528,1742625034632,-802.94,0.00046575,120]
[356530529,1742625034642,-500.0,0.00046575,120]
[356530530,1742625034651,-758.13,0.00046575,120]
[356530531,1742625034660,-3500.0,0.00046575,10]
[356530532,1742625034670,-500.0,0.00046575,120]
[356530533,1742625034679,-500.0,0.00046575,120]
[356530534,1742625034689,-500.0,0.00046575,120]
[356530535,1742625034699,-957.25,0.00046575,120]
[356530536,1742625034708,-500.0,0.00046575,120]
[356530537,1742625034718,-862.2,0.00046575,120]
[356530538,1742625034727,-500.0,0.00046575,120]